bitfinex-derivatives/quotes_ETHF0:USTF0_20251203
["timestamp","ask_amount","ask_price","bid_price","bid_amount"]
[1764720577811,3.2078,2999.9,2999.8,1.6389]
[1764720578015,1.57430516,3000.1,3000.0,0.8101]
[1764720578718,1.5771289,3000.1,3000.0,1.6415412]
[1764720579017,0.0078289,3000.1,3000.0,2.3049512]
[1764720579723,0.7841289,3000.1,3000.0,2.3049512]
[1764720580326,3.9841,3000.6,3000.5,2.1357]
[1764720580720,3.9841,3000.6,3000.2,0.1666]
[1764720580721,1.5693,3000.3,3000.2,0.8101]
[1764720580921,1.5693,3000.1,3000.0,1.6415412]
[1764720581123,0.7763,3000.1,3000.0,1.6415412]
[1764720581428,0.00382691,3000.1,3000.0,2.1383412]
[1764720582226,1.57312691,3000.1,3000.0,1.6415412]
[1764720582429,1.57312691,3000.1,3000.0,2.1383412]
[1764720582430,0.00382691,3000.1,3000.0,2.1383412]
[1764720582820,0.00382691,3000.1,3000.0,2.3049512]
[1764720583228,3.2078,3000.6,3000.5,2.1357]
[1764720583824,4.4643,3001.0,3000.9,0.8101]
[1764720584021,5.2573,3001.0,3000.9,0.8101]
[1764720584227,5.26085631,3001.0,3000.9,0.8101]
[1764720584926,5.26085631,3001.0,3000.5,0.4968]
[1764720585130,5.26085631,3001.0,3000.9,0.8101]
[1764720585427,0.00355631,3001.0,3000.9,1.6389]
[1764720586632,0.00355631,3001.0,3000.9,1.80546]
[1764720588634,3.9841,3001.4,3001.3,1.6389]
[1764720589540,3.98700873,3001.4,3001.3,1.6389]
[1764720589736,0.00290873,3001.4,3001.3,1.6389]
[1764720590128,0.77920873,3001.4,3001.3,1.6389]
[1764720590434,0.00290873,3001.4,3001.3,1.6389]
[1764720590631,0.77920873,3001.4,3001.3,1.6389]
[1764720590832,1.57220873,3001.4,3001.3,1.6389]
[1764720591539,0.77920873,3001.4,3001.3,1.6389]
[1764720591739,0.00290873,3001.4,3001.3,1.6389]
[1764720591942,0.00290873,3001.4,3001.3,1.80544]
[1764720592240,4.7771,3002.2,3001.5,0.41153]
[1764720592435,4.7771,3002.2,3002.1,0.8101]
[1764720592635,1.5693,3002.2,3002.1,1.6389]
[1764720592936,0.793,3001.6,3001.5,0.00499667]
[1764720593238,0.00330933,3001.6,3001.5,1.88889667]
[1764720593739,0.4802,3002.0,3001.5,1.88889667]
[1764720593740,2.37521312,3004.2,3003.0,3.2078]
[1764720593947,0.4802,3004.5,3004.1,3.2078]
[1764720594238,0.4802,3003.5,3003.3,0.00499667]
[1764720594433,1.5693,3003.8,3003.7,2.7276]
[1764720594743,0.00322571,3003.8,3003.7,2.73075158]
[1764720594942,2.26672571,3003.8,3003.7,2.73075158]
[1764720595145,1.47372571,3003.8,3003.7,2.73075158]
[1764720595439,2.26672571,3003.8,3003.7,2.73075158]
[1764720595739,0.69742571,3003.8,3003.7,2.73075158]
[1764720595932,0.00322571,3003.8,3003.7,2.73075158]
[1764720596440,0.00322571,3003.8,3003.7,2.89716158]
[1764720598141,0.4802,3004.5,3003.7,6.76616158]
[1764720598441,2.0495,3004.5,3004.4,3.2078]
[1764720598936,1.2565,3002.5,3001.4,5.713]
[1764720599137,2.0495,3002.5,3002.4,3.2078]
[1764720599342,0.4802,3003.0,3002.4,5.69032176]
[1764720599536,0.68920333,3002.9,3002.1,0.16649]
[1764720599734,2.25850333,3002.9,3002.8,3.2078]
[1764720600042,2.26089922,3002.9,3002.8,3.21060735]
[1764720600233,0.69159922,3002.9,3002.8,3.21060735]
[1764720600638,2.26089922,3002.9,3002.8,3.21060735]
[1764720601039,0.69159922,3002.9,3002.8,3.21060735]
[1764720601546,2.26089922,3002.9,3002.8,3.21060735]
[1764720604430,2.24959922,3002.9,3002.8,3.21060735]
[1764720607034,0.69159922,3002.9,3002.8,3.21060735]
[1764720607538,3.10069922,3002.9,3002.8,3.21060735]
[1764720609531,2.31899922,3002.9,3002.8,3.21060735]
[1764720610637,0.69159922,3002.9,3002.8,3.21060735]
[1764720610836,0.69159922,3002.9,3002.8,3.37706735]
[1764720613039,3.10069922,3002.9,3002.8,3.37706735]
[1764720613234,2.31899922,3002.9,3002.8,3.37706735]
[1764720613437,0.69159922,3002.9,3002.8,3.37706735]
[1764720614140,0.00239589,3002.9,3002.8,3.37706735]
[1764720614343,0.4802,3003.0,3002.9,0.16645]
[1764720615337,0.00496832,3003.2,3003.1,0.16644]
[1764720615740,0.4802,3003.5,3003.4,0.16643]
[1764720616045,3.57850333,3003.5,3003.4,3.37423]
[1764720616447,3.58205481,3003.5,3003.4,3.37423]
[1764720616646,1.17295481,3003.5,3003.4,3.37423]
[1764720617544,3.58205481,3003.5,3003.4,3.37423]
[1764720617744,3.58205481,3003.5,3003.4,3.2078]
[1764720620539,2.80035481,3003.5,3003.4,3.37423]
[1764720621053,2.89285148,3003.5,3003.4,3.37423]
[1764720622946,0.48375148,3003.5,3003.4,3.37423]
[1764720623149,0.4802,3004.0,3003.5,0.16642]
[1764720623348,0.4802,3004.0,3003.6,0.16642]
[1764720623349,0.68920333,3003.9,3003.6,0.16642]
[1764720623554,3.09830333,3003.9,3003.8,3.2078]
[1764720624149,3.10173739,3003.9,3003.8,3.2078]
[1764720625051,2.41253406,3003.9,3003.8,2.51859667]
[1764720629650,1.63083406,3003.9,3003.8,2.68499667]
[1764720630154,0.00343406,3003.9,3003.8,2.68499667]
[1764720630849,2.1076,3004.5,3004.1,0.16638]
[1764720631155,0.4802,3004.5,3004.4,3.2078]
[1764720631346,2.8893,3004.5,3004.4,3.2078]
[1764720631747,2.89347975,3004.5,3004.4,3.2078]
[1764720632452,0.48437975,3004.5,3004.4,3.2078]
[1764720632657,2.11177975,3004.5,3004.4,3.2078]
[1764720633049,0.48437975,3004.5,3004.4,3.37417]
[1764720633349,1.9215,3005.0,3004.4,3.2078]
[1764720633549,3.5884,3005.0,3004.9,3.2078]
[1764720634147,1.92495252,3005.0,3004.9,3.2078]
[1764720634351,3.59185252,3005.0,3004.9,3.2078]
[1764720634548,0.46385252,3005.0,3004.9,3.2078]
[1764720634750,3.59185252,3005.0,3004.9,3.2078]
[1764720635955,0.4622,3004.2,3003.5,0.9559]
[1764720636151,3.67,3004.1,3004.0,2.4224]
[1764720636452,3.67,3004.1,3003.5,0.9559]
[1764720636453,0.2311,3003.6,3003.5,2.4224]
[1764720636659,0.4622,3003.6,3003.5,0.9559]
[1764720636858,0.4622,3003.6,3003.0,1.08295]
[1764720637059,0.46719667,3003.6,3003.0,1.08794667]
[1764720637760,0.46719667,3003.6,3003.5,0.9559]
[1764720638560,1.11459667,3003.6,3003.5,0.9559]
[1764720640649,1.11459667,3003.6,3003.1,0.16644]
[1764720640853,5.3083,3003.3,3003.2,4.4105]
[1764720641454,7.3982,3003.3,3003.2,2.1644]
[1764720642149,2.1005,3003.1,3003.0,5.33199667]
[1764720642755,4.1904,3003.1,3003.0,5.33199667]
[1764720643158,4.1904,3003.1,3003.0,0.92149667]
[1764720643460,4.1904,3003.1,3003.0,0.00499667]
[1764720644450,3.2078,3003.3,3003.0,0.00499667]
[1764720644451,7.3982,3003.3,3003.2,2.1644]
[1764720644668,3.2078,3003.3,3003.2,4.4105]
[1764720645162,5.3083,3003.3,3003.2,4.4105]
[1764720645664,7.3982,3003.3,3003.2,4.4105]
[1764720646759,7.3982,3003.3,3003.2,2.1644]
[1764720646966,2.1005,3003.1,3003.0,5.69469667]
[1764720647156,4.1904,3003.1,3003.0,0.00499667]
[1764720647953,4.1904,3003.1,3003.0,5.69469667]
[1764720648161,5.3083,3003.3,3003.2,2.1644]
[1764720648360,7.3982,3003.3,3003.2,2.1644]
[1764720649369,4.1904,3003.1,3003.0,0.00499667]
[1764720650267,4.1904,3003.1,3003.0,5.69469667]
[1764720650464,2.1005,3003.1,3003.0,5.69469667]
[1764720651463,4.1904,3003.1,3003.0,3.44859667]
[1764720651768,4.1904,3003.1,3003.0,0.00499667]
[1764720652870,4.1904,3002.9,3002.8,0.00280735]
[1764720653069,7.3982,3002.9,3002.8,0.00280735]
[1764720653569,4.1904,3002.2,3002.1,7.6183]
[1764720653961,2.1005,3002.2,3002.1,7.6183]
[1764720654480,0.0032573,3002.2,3002.1,7.62215277]
[1764720655074,0.0032573,3002.2,3002.1,7.78865277]
[1764720658171,0.0032573,3002.2,3002.1,21.10065277]
[1764720658575,0.4604,3003.5,3002.7,2.33086]
[1764720658576,4.1904,3002.8,3002.7,2.33086]
[1764720658869,2.1005,3002.4,3002.3,4.4105]
[1764720659076,5.3083,3003.2,3003.1,2.1644]
[1764720659269,7.3982,3003.2,3002.5,4.487]
[1764720659468,2.1005,3002.6,3002.5,8.8975]
[1764720660073,3.21180277,3003.2,3002.5,8.8975]
[1764720660267,3.21180277,3003.2,3002.5,9.06398]
[1764720660573,3.21180277,3003.2,3002.5,5.85618]
[1764720662377,3.21180277,3003.2,3002.5,0.16648]
[1764720662378,4.1904,3002.6,3002.5,0.16648]
[1764720663172,4.1904,3002.6,3002.5,4.43508]
[1764720663477,4.2224,3002.6,3002.5,5.76718]
[1764720663973,4.2224,3002.6,3002.5,4.43508]
[1764720665069,4.2224,3002.6,3002.5,2.33088]
[1764720666273,0.00400277,3003.2,3003.1,4.43184]
[1764720670178,0.00499667,3003.6,3003.5,5.76392]
[1764720670977,4.3218,3003.4,3003.2,1.78994018]
[1764720671274,0.00261349,3003.4,3003.0,8.8053]
[1764720671473,4.32441349,3003.4,3003.3,2.1612]
[1764720672077,4.32441349,3003.4,3003.0,4.5399]
[1764720672480,2.1999,3003.1,3003.0,8.8053]
[1764720672670,4.3218,3003.1,3003.0,5.369]
[1764720673073,4.3218,3003.1,3003.0,3.2078]
[1764720673474,4.3218,3003.1,3002.5,3.2078]
[1764720673475,4.3218,3002.6,3002.5,3.2078]
[1764720675484,4.3218,3002.2,3002.1,3.37815277]
[1764720675685,4.3218,3002.2,3002.1,5.53935277]
[1764720675979,4.3218,3002.2,3002.1,7.64355277]
[1764720676183,2.1999,3002.2,3002.1,7.64355277]
[1764720677087,4.3218,3002.2,3002.1,7.64355277]
[1764720678086,2.1999,3002.2,3002.1,7.64355277]
[1764720678293,4.3218,3002.2,3002.1,7.47705277]
[1764720679085,2.1999,3002.2,3002.1,7.47705277]
[1764720679884,3.4414,3002.5,3002.4,2.1612]
[1764720680089,4.3218,3002.5,3002.4,2.1612]
[1764720680289,4.3218,3002.5,3002.4,4.2654]
[1764720680487,2.1999,3002.5,3002.4,4.2654]
[1764720680987,5.4077,3002.6,3002.5,4.2654]
[1764720681194,3.2078,3002.6,3002.5,5.5975]
[1764720684609,3.2078,3002.6,3002.5,5.76398]
[1764720685404,4.4327,3003.0,3002.5,5.76398]
[1764720685796,2.1999,3002.6,3002.5,5.76398]
[1764720685993,4.3218,3002.6,3002.5,5.76398]
[1764720686204,2.1999,3002.6,3002.5,5.76398]
[1764720686402,4.3218,3002.6,3002.5,2.1612]
[1764720686707,4.3218,3002.2,3002.1,7.47705277]
[1764720686907,2.1999,3002.2,3002.1,7.47705277]
[1764720687204,4.3218,3002.2,3002.1,2.16505277]
[1764720687605,4.3218,3002.2,3002.1,4.26925277]
[1764720688504,7.5296,3002.2,3002.1,0.00385277]
[1764720689700,7.5296,3002.2,3002.1,2.16505277]
[1764720690498,4.3218,3001.7,3001.6,1.78994018]
[1764720690702,4.3218,3001.7,3001.3,2.1612]
[1764720690703,4.3218,3001.4,3001.3,2.1612]
[1764720691001,2.1999,3001.4,3001.3,4.2654]
[1764720691508,2.1999,3001.4,3001.3,4.26840407]
[1764720694204,4.44989667,3001.7,3001.6,4.3463]
[1764720694402,2.20489667,3001.7,3001.6,4.3463]
[1764720694599,4.44989667,3001.7,3001.6,4.3463]
[1764720695004,4.44989667,3001.7,3001.3,0.00300407]
[1764720695200,3.9636,3001.4,3001.3,3.96490407]
[1764720695400,7.17639667,3001.7,3001.6,2.0217]
[1764720697310,7.17639667,3001.7,3001.6,3.9619]
[1764720699012,3.96859667,3001.7,3001.6,3.9619]
[1764720700815,3.96859667,3001.7,3001.6,2.0217]
[1764720701412,3.96859667,3001.7,3001.6,3.9619]
[1764720702216,3.96859667,3001.7,3001.6,2.0217]
[1764720702612,2.0368,3001.4,3001.3,4.13144407]
[1764720705110,0.00499667,3001.7,3001.3,4.13144407]
[1764720705310,3.96859667,3001.7,3001.6,3.9619]
[1764720705519,3.96859667,3001.7,3001.3,0.16954407]
[1764720705520,3.9636,3001.4,3001.3,4.13144407]
[1764720706220,3.96859667,3001.7,3001.6,3.9619]
[1764720707520,2.04179667,3001.7,3001.6,3.9619]
[1764720707721,0.00499667,3001.7,3001.6,4.12843]
[1764720708024,3.96859667,3001.7,3001.6,4.12843]
[1764720708724,2.04179667,3001.7,3001.6,4.12843]
[1764720709218,0.00499667,3001.7,3001.6,4.12843]
[1764720709425,0.00499667,3001.7,3001.6,7.33623]
[1764720710818,2.04179667,3001.7,3001.6,7.33623]
[1764720711126,3.96859667,3001.7,3001.6,4.12843]
[1764720712818,3.96859667,3001.7,3001.6,2.18823]
[1764720713527,3.96859667,3001.7,3001.6,4.12843]
[1764720715432,3.96859667,3001.7,3001.6,2.18823]
[1764720717234,3.96859667,3001.7,3001.6,4.12843]
[1764720718128,2.04179667,3001.7,3001.6,5.91837018]
[1764720718927,0.00499667,3001.7,3001.6,5.91837018]
[1764720719119,5.2446,3002.1,3002.0,5.0908]
[1764720719319,3.2078,3002.1,3002.0,5.0908]
[1764720719524,1.2415,3002.5,3002.4,3.9619]
[1764720719525,7.1714,3002.5,3002.4,3.9619]
[1764720720131,4.2889,3002.5,3002.4,2.18818]
[1764720720334,4.2889,3002.5,3002.4,1.96270409]
[1764720720725,4.2889,3002.5,3002.4,3.98440409]
[1764720720924,3.9636,3002.5,3002.4,5.92460409]
[1764720721528,3.9636,3002.5,3002.4,4.12838]
[1764720722330,3.9636,3002.5,3002.4,2.18818]
[1764720722625,3.9636,3002.5,3002.4,4.12838]
[1764720723030,2.0368,3002.5,3002.4,4.12838]
[1764720723427,3.8749,3002.5,3002.4,4.12838]
[1764720723624,2.0368,3002.5,3002.4,4.12838]
[1764720723826,3.8749,3002.5,3002.4,4.12838]
[1764720724435,3.62679667,3002.8,3002.7,1.8012]
[1764720724624,4.3653829,3002.8,3002.7,3.8113]
[1764720724821,3.62679667,3002.8,3002.7,3.97777]
[1764720727925,1.78869667,3002.8,3002.7,3.97777]
[1764720728333,3.62679667,3002.8,3002.7,3.97777]
[1764720728535,3.6218,3002.4,3002.3,13.24]
[1764720728728,3.6218,3002.3,3002.2,5.60752409]
[1764720729333,3.6218,3002.3,3002.2,3.8113]
[1764720729740,3.6218,3002.2,3002.1,3.2078]
[1764720731538,3.6218,3001.8,3001.7,1.8012]
[1764720731736,3.6218,3001.8,3001.7,3.8113]
[1764720732336,6.8296,3002.3,3002.2,3.8113]
[1764720733033,4.9915,3002.3,3002.2,3.8113]
[1764720733342,6.8296,3002.3,3002.2,1.8012]
[1764720733535,3.6218,3002.2,3002.1,1.96769]
[1764720733934,3.6218,3002.2,3002.1,0.16649]
[1764720734635,3.6218,3002.2,3002.1,1.96769]
[1764720735539,3.6218,3002.2,3002.1,3.97779]
[1764720736641,1.7837,3002.2,3002.1,3.97779]
[1764720736945,4.9915,3002.3,3002.2,3.8113]
[1764720737130,6.8296,3002.3,3002.2,3.8113]
[1764720737641,1.7837,3002.3,3002.2,3.8113]
[1764720738638,7.4788,3002.7,3002.6,3.8113]
[1764720738843,7.4788,3002.7,3002.6,1.8012]
[1764720739035,7.4788,3002.7,3002.6,3.8113]
[1764720739536,5.6407,3002.7,3002.6,3.8113]
[1764720740344,3.857,3002.7,3002.6,3.8113]
[1764720741041,3.857,3002.7,3002.6,3.97777]
[1764720742937,5.6407,3002.7,3002.6,3.97777]
[1764720744446,7.4788,3002.7,3002.6,3.97777]
[1764720744846,7.4788,3002.7,3002.6,1.96767]
[1764720745146,3.6218,3002.7,3002.6,1.96767]
[1764720745445,3.6218,3002.7,3002.6,3.97777]
[1764720745748,3.6218,3002.7,3002.6,1.96767]
[1764720746339,1.78869667,3002.8,3002.7,3.8113]
[1764720746543,0.00499667,3002.8,3002.7,3.8113]
[1764720747144,3.62679667,3002.8,3002.7,3.8113]
[1764720747344,3.62679667,3002.8,3002.6,0.16647]
[1764720747544,3.6218,3002.7,3002.6,0.16647]
[1764720749245,0.00499667,3002.8,3002.3,1.79622409]
[1764720749246,3.6218,3002.4,3002.3,1.79622409]
[1764720749558,3.6218,3002.3,3002.2,3.59742409]
[1764720749744,0.00499667,3002.8,3002.2,5.77401409]
[1764720749947,3.6218,3002.4,3002.3,3.97779]
[1764720750850,3.6218,3002.4,3002.3,1.96769]
[1764720751061,3.6218,3002.2,3002.1,5.00402409]
[1764720751858,3.6218,3002.2,3002.1,5.009]
[1764720753147,3.6218,3002.2,3002.1,3.2078]
[1764720753549,3.2078,3002.6,3002.1,6.46153571]
[1764720753754,1.6457,3002.2,3002.1,8.15673571]
[1764720754349,3.3636,3002.2,3002.1,8.15673571]
[1764720755256,3.3636,3002.2,3002.1,3.2078]
[1764720756556,3.3636,3001.8,3001.7,8.47394409]
[1764720756751,3.3636,3001.8,3001.7,6.67772]
[1764720757254,3.3636,3001.8,3001.7,4.90302]
[1764720757452,3.3636,3001.8,3001.7,6.67772]
[1764720760863,3.3636,3001.8,3001.7,0.16652]
[1764720761365,1.053,3002.0,3001.5,1.1289]
[1764720761366,3.0461,3001.6,3001.5,4.203]
[1764720769583,1.5099,3001.6,3001.5,4.203]
[1764720771287,3.0461,3001.6,3001.5,4.203]
[1764720778584,1.5099,3001.6,3001.5,5.68203571]
[1764720778785,6.2539,3001.8,3001.7,3.0741]
[1764720779086,6.2539,3001.8,3001.7,1.5073]
[1764720779487,3.0461,3001.8,3001.7,1.5073]
[1764720780596,3.0461,3001.6,3001.5,1.5073]
[1764720780988,6.2539,3001.6,3001.5,1.5073]
[1764720781697,6.2539,3001.6,3001.5,3.0741]
[1764720783296,6.2539,3001.6,3001.5,3.9967]
[1764720783697,1.4099,3001.6,3001.5,8.85006571]
[1764720783998,1.4099,3001.6,3001.5,10.6462898]
[1764720784200,2.9479,3001.6,3001.5,9.16725409]
[1764720786099,0.00499667,3002.8,3002.7,2.9045]
[1764720786306,0.00499667,3002.8,3002.7,4.34730732]
[1764720787301,0.00499667,3002.8,3002.7,4.51377732]
[1764720787800,0.00499667,3002.8,3002.7,3.07097]
[1764720788403,2.95289667,3002.8,3002.7,3.07097]
[1764720788701,2.95289667,3002.8,3002.2,2.39488003]
[1764720788702,2.9479,3002.4,3002.0,3.2078]
[1764720788904,2.9479,3002.1,3002.0,4.6227]
[1764720789107,2.9479,3002.1,3002.0,3.2078]
[1764720789702,41.6201,3002.5,3002.0,7.0349]
[1764720789899,6.1557,3002.4,3002.0,0.9226]
[1764720790099,2.9479,3002.1,3002.0,3.8271]
[1764720790294,1.4099,3002.1,3002.0,3.8271]
[1764720790494,6.1557,3002.4,3002.3,2.9045]
[1764720791208,6.1557,3002.4,3002.3,1.4149]
[1764720792009,6.1557,3002.4,3002.3,2.9045]
[1764720792811,6.1557,3002.4,3002.3,1.4149]
[1764720794206,6.1557,3002.4,3002.3,2.9045]
[1764720794613,6.1557,3002.4,3002.3,1.4149]
[1764720795113,6.1557,3002.4,3002.3,2.9045]
[1764720795414,6.1557,3002.4,3002.3,1.4149]
[1764720796520,2.9479,3002.1,3002.0,3.9936]
[1764720797016,1.4099,3002.1,3002.0,3.9936]
[1764720798017,6.1557,3002.4,3002.3,1.4149]
[1764720798517,2.9479,3002.4,3002.3,1.4149]
[1764720798717,6.1557,3002.4,3002.3,1.4149]
[1764720799019,2.9479,3002.1,3002.0,3.9936]
[1764720799418,1.4099,3002.1,3002.0,3.9936]
[1764720800011,2.9479,3002.1,3002.0,3.9936]
[1764720800617,2.9479,3002.1,3002.0,1.5814]
[1764720801319,2.9479,3002.1,3002.0,3.071]
[1764720801719,2.9479,3002.1,3002.0,0.1665]
[1764720802717,2.9479,3002.1,3002.0,1.5814]
[1764720803518,2.9479,3002.1,3002.0,3.071]
[1764720804815,2.9479,3002.1,3001.7,5.00396002]
[1764720805119,2.9479,3001.8,3001.7,3.2078]
[1764720805313,2.9479,3001.8,3001.7,4.6227]
[1764720805513,2.9479,3001.8,3001.7,6.1123]
[1764720808122,2.9479,3001.8,3001.7,2.9045]
[1764720808326,2.9479,3001.8,3001.7,1.4149]
[1764720809324,2.9479,3001.8,3001.5,1.08913]
[1764720809521,2.9479,3001.4,3001.3,4.62570407]
[1764720809720,2.9479,3001.1,3001.0,0.00499667]
[1764720810228,2.9479,3000.7,3000.6,2.9045]
[1764720810916,2.95096186,3000.7,3000.6,2.90736001]
[1764720814131,2.95096186,3000.7,3000.6,1.41776001]
[1764720815127,2.95096186,3000.7,3000.6,0.00286001]
[1764720815531,2.6452,3000.6,3000.5,4.5721]
[1764720815919,0.00306186,3000.7,3000.3,0.00499667]
[1764720815920,1.3128,3000.4,3000.3,0.00499667]
[1764720816119,2.6452,3000.4,3000.3,0.00499667]
[1764720816627,2.6452,3000.4,3000.3,1.37343335]
[1764720817026,2.6452,3000.4,3000.3,0.00913335]
[1764720817523,2.6452,3000.4,3000.3,1.37343335]
[1764720818533,2.6452,3000.4,3000.3,0.00913335]
[1764720818724,2.6452,3000.4,2999.5,3.5243]
[1764720818725,2.6452,2999.6,2999.5,3.5243]
[1764720818924,2.6452,2999.6,2999.5,2.6017]
[1764720819128,2.6452,2999.6,2999.5,1.3643]
[1764720819328,5.853,2999.8,2999.7,2.6017]
[1764720819520,5.853,2999.8,2999.7,1.3643]
[1764720819726,5.853,2999.8,2999.7,1.36712632]
[1764720819926,5.853,2999.8,2999.7,0.00282632]
[1764720820327,5.853,2999.8,2999.7,1.36712632]
[1764720820826,5.853,2999.8,2999.7,0.00282632]
[1764720822119,5.853,2999.8,2999.7,2.60452632]
[1764720822323,5.853,2999.8,2999.7,1.36712632]
[1764720823533,5.853,2999.8,2999.7,2.60452632]
[1764720824833,5.853,2999.8,2999.7,1.36712632]
[1764720828337,5.853,2999.8,2999.7,2.60452632]
[1764720829028,5.853,2999.8,2999.7,1.36712632]
[1764720831139,5.853,2999.8,2999.7,0.00282632]
[1764720831739,5.853,2999.8,2999.7,1.36712632]
[1764720832441,5.853,2999.8,2999.7,0.00282632]
[1764720835341,5.853,2999.8,2999.7,1.36712632]
[1764720835740,5.853,2999.8,2999.7,0.00282632]
[1764720837342,5.853,2999.8,2999.7,1.36712632]
[1764720837743,5.853,2999.8,2999.7,0.00282632]
[1764720838541,5.853,2999.8,2999.7,1.36712632]
[1764720839341,4.5206,2999.8,2999.7,2.60452632]
[1764720839539,5.853,2999.8,2999.7,2.60452632]
[1764720840544,5.853,2999.8,2999.7,0.00282632]
[1764720840849,5.853,2999.8,2999.7,1.36712632]
[1764720841049,5.853,2999.8,2999.7,0.00282632]
[1764720841248,2.6452,2999.6,2999.5,0.00499667]
[1764720841839,2.6452,2999.1,2999.0,3.69097]
[1764720842234,2.6452,2999.1,2999.0,3.69382264]
[1764720842448,1.3128,2998.7,2998.6,5.8095]
[1764720842644,2.6452,2998.7,2998.6,5.8095]
[1764720843648,2.6452,2998.7,2998.6,5.81303313]
[1764720843838,1.3128,2998.7,2998.6,5.81303313]
[1764720844039,2.56779667,2998.9,2998.8,2.5679]
[1764720844743,1.22299667,2998.9,2998.8,2.5679]
[1764720846649,2.56779667,2998.9,2998.8,2.5679]
[1764720847249,2.56779667,2998.9,2998.8,1.2069]
[1764720847549,2.5628,2998.7,2998.6,5.77923313]
[1764720848348,2.5628,2998.5,2998.4,2.57289667]
[1764720848551,1.218,2998.5,2998.4,2.57289667]
[1764720848741,2.5628,2998.5,2998.4,2.57289667]
[1764720848945,4.4258,2998.7,2998.6,2.5679]
[1764720849138,0.00499667,2998.9,2998.8,2.5679]
[1764720849340,0.00499667,2998.9,2998.8,4.05019093]
[1764720849539,0.00734604,2998.9,2998.8,4.05019093]
[1764720851644,0.00734604,2998.9,2998.8,2.5679]
[1764720852444,0.00734604,2998.9,2998.8,4.21687093]
[1764720859859,3.2078,2999.5,2999.4,2.5679]
[1764720860055,3.2078,2999.5,2999.4,4.05019093]
[1764720860561,9.6276,2999.8,2999.7,1.2069]
[1764720860857,10.37360857,2999.8,2999.7,1.2069]
[1764720861655,2.5628,2999.4,2999.3,2.73455]
[1764720861852,2.5628,2999.1,2999.0,3.3186]
[1764720862051,2.5628,2999.1,2999.0,1.2069]
[1764720862250,2.5628,2999.1,2999.0,2.5679]
[1764720862562,2.5628,2998.8,2998.7,4.36202207]
[1764720862761,3.2078,2999.1,2998.7,2.5679]
[1764720862952,5.7706,2999.1,2999.0,2.5679]
[1764720863153,5.7706,2999.1,2999.0,1.2069]
[1764720863761,5.7706,2999.1,2999.0,2.5679]
[1764720864461,5.7706,2999.1,2999.0,3.3186]
[1764720865356,4.4258,2999.1,2999.0,3.3186]
[1764720865552,2.5628,2999.1,2999.0,3.3186]
[1764720865948,5.7706,2999.1,2999.0,3.3186]
[1764720866152,5.7706,2999.1,2999.0,1.2069]
[1764720866365,2.5628,2998.8,2998.7,3.00102207]
[1764720866758,2.5628,2998.8,2998.7,4.36202207]
[1764720868865,1.218,2998.8,2998.7,4.36202207]
[1764720869064,3.2078,2999.1,2998.7,4.36202207]
[1764720869065,5.7706,2999.1,2999.0,1.2069]
[1764720870061,5.7706,2999.1,2998.7,1.79412207]
[1764720870265,1.218,2998.8,2998.7,4.36202207]
[1764720871463,1.218,2998.8,2998.7,2.5679]
[1764720871763,4.4258,2999.1,2999.0,1.2069]
[1764720871966,5.7706,2999.1,2999.0,1.2069]
[1764720875672,2.4413,2998.8,2998.7,3.00401811]
[1764720875868,2.4413,2998.8,2998.7,4.15361811]
[1764720879274,2.4413,2998.8,2998.7,4.32030811]
[1764720879473,1.218,2998.8,2998.7,4.32030811]
[1764720880069,5.2589,2999.1,2999.0,1.075]
[1764720880274,6.00332186,2999.1,2999.0,2.1358]
[1764720880573,6.00332186,2999.1,2999.0,1.075]
[1764720880774,6.00332186,2999.1,2999.0,2.1358]
[1764720881075,2.0511,2998.8,2998.7,4.09960811]
[1764720881972,2.0511,2998.8,2998.7,3.03880811]
[1764720882175,2.0511,2998.8,2998.7,4.09960811]
[1764720884678,1.0198,2998.8,2998.7,4.09960811]
[1764720884976,5.2589,2999.1,2999.0,2.1358]
[1764720885177,6.00333269,2999.1,2999.0,2.1358]
[1764720886381,6.00333269,2999.1,2999.0,2.738]
[1764720887085,3.95223269,2999.1,2999.0,2.738]
[1764720887281,3.857,2999.4,2999.3,2.1358]
[1764720887282,7.0648,2999.4,2999.3,2.1358]
[1764720887476,4.2276,2999.4,2999.3,2.1358]
[1764720887783,5.2589,2999.4,2999.3,2.1358]
[1764720888385,5.2589,2999.4,2999.3,2.30245]
[1764720888787,3.2078,2999.4,2999.3,2.30245]
[1764720889286,4.2276,2999.4,2999.3,2.30245]
[1764720889482,2.0511,2999.4,2999.3,2.30245]
[1764720889790,1.0198,2999.4,2999.3,2.30245]
[1764720890178,5.2589,2999.7,2999.6,1.075]
[1764720890374,6.00299692,2999.7,2999.6,1.075]
[1764720890787,1.0198,2999.4,2999.3,2.30245]
[1764720890990,2.0511,2999.4,2999.3,2.30245]
[1764720891684,2.0511,2999.4,2999.3,1.075]
[1764720891890,2.0511,2999.4,2999.1,1.79792124]
[1764720892085,0.1688,2999.5,2999.3,2.1358]
[1764720892397,2.0511,2999.4,2999.3,2.1358]
[1764720894490,2.0511,2999.1,2999.0,1.79792124]
[1764720894691,2.0511,2999.1,2999.0,2.87292124]
[1764720894997,2.0511,2999.0,2998.9,0.16667]
[1764720895194,2.0511,2999.0,2998.9,1.24167]
[1764720895594,4.2276,2999.1,2999.0,2.738]
[1764720895797,5.2589,2999.1,2999.0,2.738]
[1764720895998,3.2078,2999.1,2999.0,2.90467]
[1764720898701,3.857,2999.4,2999.3,2.1358]
[1764720898889,4.59856026,2999.4,2999.3,2.30245]
[1764720899593,0.74156026,2999.4,2999.3,2.30245]
[1764720900390,1.76136026,2999.4,2999.3,2.30245]
[1764720900898,0.74156026,2999.4,2999.3,2.30245]
[1764720901099,3.2078,2999.5,2999.4,2.30245]
[1764720901600,2.05475226,2999.8,2999.7,2.1358]
[1764720901796,1.02345226,2999.8,2999.7,2.1358]
[1764720902000,2.05475226,2999.8,2999.7,2.1358]